bitfinex/quotes_SOLUSD_20241022
["timestamp","ask_amount","ask_price","bid_price","bid_amount"]
[1729579211704,0.1,168.55,168.5,13.52974426]
[1729579213535,0.1,168.56,168.52,13.52974426]
[1729579213827,39.114384,168.64,168.52,13.52974426]
[1729579213828,0.1,168.57,168.52,13.52974426]
[1729579214034,0.1,168.58,168.52,13.52974426]
[1729579214213,0.1,168.59,168.54,13.52974426]
[1729579214408,0.1,168.6,168.56,13.52974426]
[1729579216115,0.1,168.61,168.56,13.52974426]
[1729579216428,0.1,168.64,168.6,13.52974426]
[1729579216732,0.1,168.64,168.62,13.52974426]
[1729579216923,0.1,168.67,168.62,13.52974426]
[1729579217228,15.9126,168.69,168.65,13.52974426]
[1729579217428,0.1,168.63,168.55,6.9543856]
[1729579217728,0.1,168.63,168.59,13.52974426]
[1729579218735,0.1,168.64,168.59,13.52974426]
[1729579219116,0.1,168.65,168.61,13.52974426]
[1729579219323,0.1,168.64,168.61,13.52974426]
[1729579220133,0.1,168.69,168.63,13.52974426]
[1729579220336,0.1,168.66,168.65,13.52974426]
[1729579221616,0.1,168.68,168.65,13.52974426]
[1729579223326,6.2187,168.72,168.65,13.52974426]
[1729579223327,0.1,168.66,168.65,13.52974426]
[1729579223529,0.1,168.68,168.65,13.52974426]
[1729579224636,0.1,168.66,168.65,13.52974426]
[1729579226040,0.1,168.66,168.58,7.0543856]
[1729579226041,0.1,168.66,168.59,23.776884]
[1729579226229,0.1,168.66,168.64,13.52974426]
[1729579229544,0.1,168.66,168.59,23.776884]
[1729579229545,0.1,168.66,168.58,23.776884]
[1729579229744,0.1,168.65,168.61,13.52974426]
[1729579230048,0.1,168.63,168.61,13.52974426]
[1729579231033,0.1,168.63,168.56,13.52974426]
[1729579231034,0.1,168.62,168.59,13.52974426]
[1729579231849,0.1,168.62,168.54,29.6910856]
[1729579232152,0.1,168.62,168.57,13.52974426]
[1729579233117,0.1,168.6,168.57,13.52974426]
[1729579233322,0.1,168.59,168.55,13.52974426]
[1729579233648,0.1,168.57,168.53,19.5993645]
[1729579233818,5.9305,168.62,168.53,19.5993645]
[1729579233819,0.1,168.56,168.53,13.52974426]
[1729579234637,0.1,168.57,168.53,13.52974426]
[1729579234837,0.1,168.63,168.56,13.52974426]
[1729579235141,0.1,168.62,168.57,13.52974426]
[1729579235347,0.1,168.6,168.57,13.52974426]
[1729579236549,0.1,168.62,168.57,13.52974426]
[1729579236929,0.1,168.61,168.57,13.52974426]
[1729579239853,0.1,168.61,168.59,13.52974426]
[1729579243146,0.1,168.62,168.59,13.52974426]
[1729579243354,0.1,168.61,168.59,13.52974426]
[1729579246046,0.1,168.62,168.59,13.52974426]
[1729579246249,0.1,168.61,168.59,13.52974426]
[1729579247744,0.1,168.62,168.59,13.52974426]
[1729579247944,0.1,168.61,168.59,13.52974426]
[1729579249961,0.1,168.62,168.59,13.52974426]
[1729579250165,0.1,168.61,168.59,13.52974426]
[1729579250369,0.1,168.62,168.6,8.65162761]
[1729579250664,15.0411,168.66,168.6,8.65162761]
[1729579250665,0.1,168.61,168.6,8.65162761]
[1729579253370,0.1,168.62,168.6,8.65162761]
[1729579253670,0.1,168.61,168.6,8.65162761]
[1729579254544,0.1,168.62,168.6,8.65162761]
[1729579254740,0.1,168.61,168.6,8.65162761]
[1729579254943,0.1,168.62,168.6,8.65162761]
[1729579255247,0.1,168.61,168.6,8.65162761]
[1729579258570,0.1,168.62,168.6,8.65162761]
[1729579258776,0.1,168.61,168.6,8.65162761]
[1729579259662,15.0411,168.66,168.6,8.65162761]
[1729579259663,0.1,168.62,168.6,8.65162761]
[1729579259880,0.1,168.61,168.6,8.65162761]
[1729579260260,0.1,168.62,168.6,8.65162761]
[1729579260563,0.1,168.61,168.53,20.0]
[1729579260774,0.1,168.61,168.58,8.65162761]
[1729579262873,0.1,168.58,168.55,8.65162761]
[1729579263181,6.5019,168.62,168.53,8.65162761]
[1729579263182,0.1,168.56,168.53,8.65162761]
[1729579263483,0.1,168.55,168.53,8.65162761]
[1729579263887,0.1,168.56,168.49,6.6515]
[1729579264177,0.1,168.56,168.48,6.09346413]
[1729579264383,0.1,168.55,168.53,8.65162761]
[1729579264753,0.1,168.54,168.53,8.65162761]
[1729579265373,0.1,168.54,168.48,6.09346413]
[1729579265596,0.1,168.53,168.51,8.65162761]
[1729579266259,0.1,168.55,168.51,8.65162761]
[1729579266561,0.1,168.54,168.53,8.65162761]
[1729579267263,0.1,168.55,168.53,8.65162761]
[1729579267682,0.1,168.54,168.53,8.65162761]
[1729579268268,0.1,168.55,168.53,8.65162761]
[1729579268580,0.1,168.57,168.54,23.776884]
[1729579268786,0.1,168.59,168.57,8.65162761]
[1729579269086,0.1,168.6,168.58,8.65162761]
[1729579269259,0.1,168.6,168.54,23.776884]
[1729579269260,0.1,168.6,168.59,8.65162761]
[1729579269461,0.1,168.62,168.59,8.65162761]
[1729579269681,0.1,168.6,168.59,8.65162761]
[1729579269890,0.1,168.63,168.59,8.65162761]
[1729579270082,0.1,168.62,168.54,23.776884]
[1729579270277,0.1,168.62,168.61,8.65162761]
[1729579270580,0.1,168.62,168.54,23.776884]
[1729579270772,0.1,168.62,168.61,8.65162761]
[1729579272285,0.1,168.62,168.6,13.51551303]
[1729579272583,0.1,168.64,168.6,13.51551303]
[1729579272786,0.1,168.62,168.6,13.51551303]
[1729579272983,0.1,168.64,168.6,13.51551303]
[1729579273284,0.1,168.62,168.6,13.51551303]
[1729579273788,0.1,168.62,168.54,23.776884]
[1729579273972,0.1,168.62,168.59,13.51551303]
[1729579274282,0.1,168.61,168.59,13.51551303]
[1729579274671,0.1,168.62,168.59,13.51551303]
[1729579274879,0.1,168.61,168.59,13.51551303]
[1729579277890,0.1,168.63,168.59,13.51551303]
[1729579279572,0.1,168.61,168.59,13.51551303]
[1729579279990,0.1,168.63,168.59,13.51551303]
[1729579280282,0.1,168.61,168.59,13.51551303]
[1729579282288,0.1,168.63,168.59,13.51551303]
[1729579282587,0.1,168.61,168.59,13.51551303]
[1729579284690,0.1,168.63,168.59,13.51551303]
[1729579284890,0.1,168.6,168.54,23.776884]
[1729579285081,0.1,168.59,168.56,13.51551303]
[1729579287889,0.1,168.6,168.56,13.51551303]
[1729579288193,0.1,168.59,168.56,13.51551303]
[1729579288685,0.1,168.58,168.56,13.51551303]
[1729579288894,0.00397202,168.58,168.56,13.51551303]
[1729579289070,21.9386,168.65,168.56,13.51551303]
[1729579291190,16.0092,168.65,168.56,13.51551303]
[1729579291484,5.9304,168.63,168.53,13.51551303]
[1729579294301,5.9304,168.63,168.56,8.65576504]
[1729579298102,25.9298,168.64,168.56,8.65576504]
[1729579298793,5.9298,168.64,168.56,8.65576504]
[1729579299289,5.9298,168.64,168.5,23.776884]
[1729579299290,16.0092,168.65,168.58,8.65576504]
[1729579299489,16.0092,168.65,168.6,8.65576504]
[1729579308478,22.0746,168.69,168.6,8.65576504]
[1729579308684,16.0463,168.69,168.64,8.65576504]
[1729579309190,16.0463,168.69,168.66,8.65576504]
[1729579309806,16.6344,168.73,168.66,8.65576504]
[1729579309984,16.5344,168.73,168.66,8.65576504]
[1729579310184,16.6344,168.73,168.66,8.65576504]
[1729579310497,16.5344,168.73,168.68,8.65576504]
[1729579311905,16.5344,168.73,168.7,8.65576504]
[1729579313703,16.5344,168.73,168.61,15.0]
[1729579313907,5.9273,168.71,168.61,15.0]
[1729579314100,5.9273,168.71,168.63,8.65576504]
[1729579314490,5.9273,168.71,168.6,6.1245]
[1729579314892,16.7344,168.73,168.6,6.1245]
[1729579315092,16.7344,168.73,168.64,8.65576504]
[1729579315093,22.6613,168.73,168.64,8.65576504]
[1729579315712,5.9269,168.72,168.64,8.65576504]
[1729579320820,5.9273,168.71,168.64,8.65576504]
[1729579321123,5.928,168.69,168.61,8.65576504]
[1729579322613,6.0276,168.7,168.61,8.65576504]
[1729579323310,6.4091,168.71,168.61,8.65576504]
[1729579323618,6.4091,168.71,168.63,8.65576504]
[1729579325925,22.461,168.73,168.65,8.65576504]
[1729579326426,22.561,168.73,168.65,8.65576504]
[1729579327127,22.661,168.73,168.65,8.65576504]
[1729579327515,5.927,168.72,168.65,8.65576504]
[1729579327918,16.5344,168.73,168.65,8.65576504]
[1729579331131,16.5344,168.73,168.67,8.65576504]
[1729579333320,5.927,168.72,168.65,8.65576504]
[1729579333716,16.5344,168.73,168.65,8.65576504]
[1729579334329,22.461,168.73,168.65,8.65576504]
[1729579336313,22.461,168.73,168.61,23.776884]
[1729579336509,22.461,168.73,168.65,8.65576504]
[1729579339021,16.0315,168.77,168.71,8.65576504]
[1729579339230,15.9315,168.77,168.71,8.65576504]
[1729579339413,21.8567,168.77,168.71,8.65576504]
[1729579341509,15.9315,168.77,168.71,8.65576504]
[1729579343138,15.9315,168.77,168.73,8.65576504]
[1729579357944,15.9315,168.77,168.71,8.65576504]
[1729579361245,16.0315,168.77,168.66,6.0878]
[1729579361453,5.9258,168.76,168.69,8.65576504]
[1729579367168,5.9258,168.76,168.71,8.65576504]
[1729579378582,5.9258,168.76,168.71,8.65576504]
[1729579380657,15.9315,168.77,168.71,8.65576504]
[1729579386759,21.8567,168.77,168.71,8.65576504]
[1729579388689,21.8567,168.77,168.66,6.0878]
[1729579388690,5.9273,168.71,168.66,6.0878]
[1729579388874,5.9266,168.73,168.66,6.0878]
[1729579390089,5.9274,168.71,168.62,15.2686]
[1729579390260,5.9274,168.71,168.62,23.92436504]
[1729579391687,5.9277,168.7,168.61,6.0203]
[1729579391982,0.1,168.7,168.6,8.65576504]
[1729579392164,6.028,168.7,168.6,8.65576504]
[1729579392766,5.928,168.69,168.6,8.65576504]
[1729579392970,20.1,168.68,168.58,15.5254]
[1729579393282,0.1,168.67,168.58,24.18116504]
[1729579393584,20.2,168.68,168.58,24.18116504]
[1729579393767,0.1,168.67,168.58,24.18116504]
[1729579394482,6.0287,168.67,168.58,24.18116504]
[1729579395584,6.0287,168.67,168.58,8.65576504]
[1729579397883,5.9287,168.67,168.58,8.65576504]
[1729579398187,6.0287,168.67,168.58,8.65576504]
[1729579398684,5.9287,168.67,168.58,8.65576504]
[1729579398880,6.0287,168.67,168.58,8.65576504]
[1729579399392,5.9294,168.65,168.57,6.4892]
[1729579400373,5.9294,168.65,168.56,6.91816679]
[1729579400868,15.8663,168.64,168.56,6.91816679]
[1729579402292,21.7961,168.64,168.55,8.65576504]
[1729579402471,21.8961,168.64,168.54,15.8474]
[1729579402807,21.8961,168.64,168.54,24.50316504]
[1729579404371,21.7961,168.64,168.54,24.50316504]
[1729579404892,21.8961,168.64,168.54,24.50316504]
[1729579405195,6.2292,168.62,168.53,8.65576504]
[1729579405375,5.9308,168.61,168.53,8.65576504]
[1729579405773,6.1292,168.62,168.53,8.65576504]
[1729579406193,6.1292,168.62,168.55,8.65576504]
[1729579407305,15.8663,168.64,168.55,8.65576504]
[1729579407479,21.7962,168.64,168.55,8.65576504]
[1729579412909,15.8663,168.64,168.57,8.65576504]
[1729579413106,7.6624638,168.65,168.59,8.65576504]
[1729579413709,7.6624638,168.65,168.63,8.65576504]
[1729579413914,7.6624638,168.65,168.61,8.65576504]
[1729579417397,7.6624638,168.65,168.58,8.65576504]
[1729579417914,13.5919638,168.65,168.58,8.65576504]
[1729579425227,13.5919638,168.65,168.54,23.776884]
[1729579425228,13.5919638,168.65,168.6,8.65576504]
[1729579425405,7.6624638,168.65,168.62,8.65576504]
[1729579426313,7.6624638,168.65,168.6,8.65576504]
[1729579426501,7.6624638,168.65,168.54,23.776884]
[1729579426701,7.6624638,168.65,168.6,8.65576504]
[1729579436811,7.6624638,168.65,168.54,23.776884]
[1729579437010,7.6624638,168.65,168.55,8.65576504]
[1729579437011,5.9307,168.62,168.55,8.65576504]
[1729579437206,15.0396,168.61,168.49,6.6499]
[1729579437443,5.9315,168.6,168.53,8.65576504]
[1729579438246,15.0396,168.61,168.57,8.65576504]
[1729579438413,6.2749,168.64,168.57,8.65576504]
[1729579438614,5.9301,168.63,168.57,8.65576504]
[1729579440431,6.2749,168.64,168.57,8.65576504]
[1729579441438,12.2047,168.64,168.57,8.65576504]
[1729579442144,5.9308,168.61,168.49,6.6499]
[1729579442309,5.9308,168.61,168.54,8.65576504]
[1729579442829,5.9312,168.6,168.54,8.65576504]
[1729579443341,0.1,168.62,168.54,8.65576504]
[1729579443536,5.9309,168.61,168.54,8.65576504]
[1729579445626,5.9312,168.6,168.54,8.65576504]
[1729579446444,5.9312,168.6,168.52,8.65576504]
[1729579447126,5.9312,168.6,168.5,23.776884]
[1729579447345,5.9312,168.6,168.54,8.65576504]
[1729579449654,20.1,168.63,168.54,8.65576504]
[1729579449952,5.9305,168.62,168.54,8.65576504]
[1729579450247,5.9304,168.62,168.54,8.65576504]
[1729579451831,6.2749,168.64,168.58,8.65576504]
[1729579453725,23.5232638,168.65,168.6,8.65576504]
[1729579453948,7.6624638,168.65,168.6,8.65576504]
[1729579456838,7.6624638,168.65,168.62,8.65576504]
[1729579462467,7.6624638,168.65,168.56,23.776884]
[1729579462767,7.6624638,168.65,168.63,8.65576504]
[1729579482598,15.7576,168.69,168.63,8.65576504]
[1729579482786,15.7576,168.69,168.65,8.65576504]
[1729579487272,21.6857,168.69,168.61,23.776884]
[1729579487577,21.6857,168.69,168.62,8.65576504]
[1729579489699,15.7576,168.69,168.62,8.65576504]
[1729579498499,5.9283,168.68,168.62,8.65576504]
[1729579500724,15.8576,168.69,168.56,16.1464]
[1729579500888,5.9302,168.63,168.57,8.65576504]
[1729579501088,6.309,168.67,168.57,8.65576504]
[1729579501308,5.9298,168.64,168.57,8.65576504]
[1729579501605,0.1,168.66,168.52,22.6234]
[1729579501806,5.9301,168.63,168.52,22.6234]
[1729579501991,5.9301,168.63,168.56,8.65576504]
[1729579502401,5.9306,168.62,168.56,8.65576504]
[1729579502587,5.9308,168.62,168.55,23.776884]
[1729579504900,5.9308,168.62,168.56,8.65576504]
[1729579505098,16.0112,168.64,168.58,8.65576504]
[1729579506215,16.0112,168.64,168.58,23.776884]
[1729579509611,21.9409,168.64,168.58,23.776884]
[1729579509813,21.9409,168.64,168.57,23.776884]
[1729579510516,21.9409,168.64,168.52,22.6234]
[1729579510517,16.0112,168.64,168.52,22.6234]
[1729579510716,5.9304,168.63,168.55,8.65576504]
[1729579510905,5.9308,168.61,168.52,16.1464]
[1729579511209,5.9314,168.6,168.53,8.65576504]
[1729579512194,5.9314,168.6,168.53,23.776884]
[1729579512394,5.9314,168.6,168.53,32.43264904]
[1729579514011,16.0112,168.64,168.53,32.43264904]
[1729579514217,16.0112,168.64,168.56,23.776884]
[1729579514611,5.9301,168.63,168.56,23.776884]
[1729579514914,16.0112,168.64,168.57,8.65576504]
[1729579515501,16.0112,168.64,168.58,23.776884]
[1729579517318,16.0112,168.64,168.57,8.65576504]
[1729579517319,21.941,168.64,168.57,8.65576504]
[1729579520322,16.0112,168.64,168.53,23.776884]
[1729579520706,5.9306,168.62,168.55,8.65576504]
[1729579523726,16.0112,168.64,168.58,23.776884]
[1729579523933,8.02563862,168.65,168.6,23.776884]
[1729579524438,8.02563862,168.65,168.61,8.65576504]
[1729579527034,8.02563862,168.65,168.56,6.3458]
[1729579527035,8.02563862,168.65,168.63,8.65576504]
[1729579527827,21.7782,168.64,168.48,6.7169]
[1729579528121,5.9309,168.61,168.53,8.65576504]
[1729579528333,5.9309,168.61,168.48,6.6169]
[1729579528334,5.9312,168.6,168.51,8.65576504]
[1729579528508,5.9312,168.6,168.47,16.169]
[1729579528713,5.9312,168.6,168.49,8.65576504]
[1729579530304,5.9312,168.6,168.48,13.53379467]
[1729579532109,5.9312,168.6,168.49,23.776884]
[1729579532310,20.0,168.63,168.51,23.776884]
[1729579532529,21.7782,168.64,168.52,13.53379467]
[1729579532722,27.7079,168.64,168.52,13.53379467]
[1729579533530,5.9301,168.63,168.52,13.53379467]
[1729579533913,5.9305,168.62,168.52,13.53379467]
[1729579534135,5.9305,168.62,168.51,23.776884]
[1729579534335,5.9305,168.62,168.51,37.31067867]
[1729579535934,21.7782,168.64,168.51,37.31067867]
[1729579536126,27.708,168.64,168.54,23.776884]
[1729579538029,8.02563862,168.65,168.56,23.776884]
[1729579540839,13.95503862,168.65,168.56,23.776884]
[1729579546443,8.02563862,168.65,168.56,23.776884]
[1729579546741,5.9302,168.63,168.55,15.8906]
[1729579546915,5.9309,168.61,168.55,15.8906]
[1729579547341,5.9304,168.63,168.55,15.8906]
[1729579549643,13.95533862,168.65,168.54,13.53379467]
[1729579549830,13.95533862,168.65,168.55,23.776884]
[1729579550324,13.95533862,168.65,168.58,8.65370419]
[1729579551730,8.02563862,168.65,168.58,8.65370419]
[1729579552440,8.02563862,168.65,168.55,23.776884]
[1729579552837,5.9291,168.66,168.55,23.776884]
[1729579552838,15.9984,168.68,168.63,8.65370419]
[1729579553429,15.9984,168.68,168.61,8.65370419]
[1729579554228,15.9984,168.68,168.58,16.2412]
[1729579554551,15.9984,168.68,168.59,8.65370419]
[1729579556146,5.9287,168.67,168.59,8.65370419]
[1729579557731,21.9267,168.68,168.59,8.65370419]
[1729579559132,15.9984,168.68,168.58,16.2412]
[1729579559438,21.9268,168.68,168.6,8.65370419]
[1729579560242,21.9268,168.68,168.59,8.65370419]
[1729579560632,5.9287,168.67,168.54,16.4214]
[1729579560834,5.9287,168.67,168.55,20.0]
[1729579561033,5.9287,168.67,168.54,16.4214]
[1729579561034,0.1,168.66,168.54,16.4214]
[1729579561240,16.1562,168.62,168.49,28.59803299]
[1729579561459,5.9319,168.58,168.49,15.9512]
[1729579561623,5.9315,168.6,168.49,24.60490419]
[1729579561829,5.9315,168.6,168.51,8.65370419]
[1729579562634,16.1562,168.62,168.55,8.65370419]
[1729579564459,16.1562,168.62,168.52,13.52754715]
[1729579564833,16.1562,168.62,168.53,23.776884]
[1729579567636,12.1774,168.65,168.53,23.776884]
[1729579567843,12.1774,168.65,168.54,13.52754715]
[1729579570547,6.1569,168.69,168.58,13.52754715]
[1729579570929,6.1569,168.69,168.6,13.52754715]
[1729579571350,6.1569,168.69,168.58,13.52754715]
[1729579572540,12.0851,168.69,168.58,13.52754715]
[1729579574243,5.9288,168.67,168.56,13.52754715]
[1729579576857,6.1569,168.69,168.59,23.776884]
[1729579577163,12.085,168.69,168.58,13.52754715]
[1729579578252,6.1569,168.69,168.58,13.52754715]
[1729579580163,6.1569,168.69,168.59,13.52754715]
[1729579580860,15.0676,168.7,168.6,23.776884]
[1729579581071,15.0676,168.7,168.57,20.0]
[1729579581072,20.9953,168.7,168.57,20.0]
[1729579581243,15.0676,168.7,168.6,13.52754715]
[1729579583162,14.17298915,168.73,168.62,16.2936]
[1729579583373,6.1498,168.73,168.65,13.52754715]
[1729579583573,21.25012951,168.75,168.65,13.52754715]
[1729579592264,21.25012951,168.75,168.68,8.64481436]
[1729579593592,15.3321,168.75,168.7,8.64481436]
[1729579593777,15.3321,168.75,168.68,8.64481436]
[1729579596291,6.0168,168.77,168.63,43.776884]
[1729579596494,6.0168,168.77,168.71,8.64481436]
[1729579597197,15.1654,168.79,168.64,8.45707566]
[1729579597198,15.1654,168.79,168.73,8.64481436]
[1729579597388,6.0923,168.81,168.75,8.64481436]
[1729579597581,6.0923,168.81,168.77,8.64481436]
[1729579597977,15.8079,168.83,168.77,8.64481436]
[1729579598979,11.85221482,168.89,168.81,8.64481436]
[1729579599181,22.3956,168.9,168.81,8.64481436]
[1729579599984,5.921,168.89,168.81,8.64481436]
[1729579600377,5.921,168.89,168.78,13.48685046]
[1729579601685,20.0,168.89,168.78,13.48685046]
[1729579603518,20.0,168.89,168.8,13.48685046]
[1729579610791,5.9216,168.88,168.77,15.0786]
[1729579612121,16.4749,168.9,168.79,23.776884]
[1729579612290,16.4749,168.9,168.82,13.48685046]
[1729579612697,16.4749,168.9,168.8,13.48685046]
[1729579612993,22.3958,168.9,168.8,13.48685046]
[1729579620422,22.3958,168.9,168.82,8.63062842]
[1729579624722,16.4749,168.9,168.84,8.63062842]
[1729579624927,16.4749,168.9,168.78,23.776884]
[1729579625136,16.4749,168.9,168.83,8.63062842]
[1729579626132,22.3956,168.9,168.83,8.63062842]
[1729579628015,16.4749,168.9,168.8,23.776884]
[1729579628218,16.4749,168.9,168.82,8.63062842]
[1729579630913,5.9213,168.88,168.8,8.63062842]
[1729579631717,5.9215,168.88,168.8,8.63062842]
[1729579634003,16.4749,168.9,168.78,20.0]
[1729579634205,20.0,168.87,168.75,6.2277]
[1729579634512,43.776884,168.87,168.74,8.63062842]
[1729579634723,14.9034,168.88,168.74,8.63062842]
[1729579634724,5.9233,168.83,168.74,8.63062842]
[1729579635444,5.9237,168.82,168.72,15.5509]
[1729579635725,5.9237,168.82,168.74,8.63062842]
[1729579636919,5.97760513,168.87,168.8,8.63062842]
[1729579637127,21.5212,168.89,168.75,30.82337566]
[1729579637316,5.9217,168.88,168.76,43.776884]
[1729579637511,5.9217,168.88,168.8,8.63062842]
[1729579638628,21.5212,168.89,168.82,8.63062842]
[1729579638810,5.9203,168.91,168.82,8.63062842]
[1729579639131,5.9203,168.91,168.84,8.63062842]
[1729579639730,0.6245178,168.92,168.84,8.63062842]
[1729579639938,5.9203,168.91,168.82,8.63062842]
[1729579640243,5.9206,168.9,168.82,8.63062842]
[1729579641526,20.0,168.9,168.76,20.0]
[1729579641737,20.0,168.9,168.79,8.63062842]
[1729579641918,20.0,168.9,168.76,20.0]
[1729579641919,5.9206,168.9,168.81,8.63062842]
[1729579642122,5.9206,168.9,168.83,8.63062842]
[1729579646039,0.6245178,168.92,168.76,20.0]
[1729579646040,5.9216,168.88,168.81,8.63062842]
[1729579647132,5.9216,168.88,168.79,8.63062842]
[1729579649442,5.9211,168.89,168.81,8.63062842]
[1729579649739,20.0,168.9,168.81,8.63062842]
[1729579649943,5.9213,168.88,168.81,8.63062842]
[1729579650945,5.9213,168.88,168.75,22.3663]
[1729579650946,5.9229,168.84,168.75,15.84]
[1729579652130,12.012,168.86,168.76,8.63062842]
[1729579652629,6.0897,168.86,168.78,8.63062842]
[1729579652931,6.0897,168.86,168.75,15.84]
[1729579652932,22.4509,168.88,168.8,8.63062842]
[1729579653651,5.9217,168.87,168.79,8.63062842]
[1729579655353,16.5295,168.88,168.79,8.63062842]
[1729579656238,22.4508,168.88,168.79,8.63062842]
[1729579658967,22.4508,168.88,168.76,43.776884]
[1729579659166,5.9221,168.86,168.79,8.63062842]
[1729579659367,16.5295,168.88,168.77,8.63062842]
[1729579659867,16.5295,168.88,168.75,15.84]
[1729579660060,16.5295,168.88,168.76,8.63062842]
[1729579660252,5.9231,168.83,168.76,8.63062842]
[1729579660649,5.9217,168.87,168.76,8.63062842]
[1729579660967,16.5295,168.88,168.75,15.84]
[1729579661166,5.9223,168.86,168.77,8.63062842]
[1729579661471,5.9225,168.85,168.77,8.63062842]
[1729579662068,5.9228,168.84,168.75,15.84]
[1729579662249,5.9228,168.84,168.76,8.63062842]
[1729579667352,5.9228,168.84,168.75,15.84]
[1729579667549,5.9238,168.81,168.72,43.776884]
[1729579667765,5.9238,168.81,168.72,32.40751242]
[1729579667967,16.0033,168.81,168.71,15.1455]
[1729579668167,16.0033,168.81,168.69,8.63062842]
[1729579668377,5.9252,168.78,168.67,23.77612842]
[1729579668771,5.9256,168.76,168.67,15.1455]
[1729579668952,5.9256,168.76,168.66,8.63062842]
[1729579669158,43.776884,168.79,168.64,8.63062842]
[1729579669370,5.9264,168.74,168.64,8.63062842]
[1729579669570,20.0,168.77,168.64,8.63062842]
[1729579669874,5.9269,168.73,168.64,8.63062842]
[1729579670057,5.926,168.75,168.63,15.0013]
[1729579670256,43.876884,168.77,168.63,15.0013]
[1729579670451,43.976884,168.77,168.6,13.51555562]
[1729579670669,5.926,168.75,168.62,13.51555562]
[1729579670971,5.9273,168.71,168.6,13.51555562]
[1729579671573,43.976884,168.77,168.6,13.51555562]
[1729579671897,5.9275,168.71,168.6,13.51555562]
[1729579672089,5.928,168.69,168.61,20.0]
[1729579672264,5.9276,168.71,168.61,20.0]
[1729579678182,6.6494,168.72,168.62,37.29243962]
[1729579682280,6.6494,168.72,168.62,23.776884]
[1729579682486,5.9273,168.71,168.6,43.776884]
[1729579682989,5.9273,168.71,168.62,20.0]
[1729579683997,6.6494,168.72,168.63,13.51555562]
[1729579688894,5.9262,168.75,168.64,43.776884]
[1729579689071,5.9262,168.75,168.65,13.51555562]
[1729579689271,5.9266,168.73,168.64,20.0]
[1729579689972,6.0786,168.76,168.63,13.51555562]
[1729579689973,5.9273,168.72,168.63,13.51555562]
[1729579690173,5.9273,168.71,168.62,20.0]
[1729579690574,15.0354,168.7,168.62,20.0]
[1729579690883,20.9633,168.7,168.6,23.776884]
[1729579691278,20.9633,168.7,168.59,13.51555562]
[1729579691279,5.9282,168.69,168.59,13.51555562]
[1729579691479,5.9287,168.67,168.57,34.70505562]
[1729579691676,5.9287,168.67,168.57,28.51685562]
[1729579692084,5.9283,168.68,168.55,26.15603747]
[1729579692288,12.0519,168.69,168.57,13.51555562]
[1729579692471,5.9288,168.67,168.57,13.51555562]
[1729579692668,6.1239,168.69,168.57,13.51555562]
[1729579692889,5.929,168.67,168.58,8.45707566]
[1729579693093,6.1239,168.69,168.56,13.51555562]
[1729579693276,5.9291,168.66,168.56,13.51555562]
[1729579693592,5.9297,168.65,168.54,13.51555562]
[1729579693889,5.9298,168.64,168.54,13.51555562]
[1729579700309,5.9298,168.64,168.56,8.65686497]
[1729579703874,5.9294,168.65,168.54,23.776884]
[1729579704078,5.9294,168.65,168.58,8.65686497]
[1729579705203,5.929,168.67,168.58,8.65686497]
[1729579705391,5.9291,168.66,168.58,8.65686497]
[1729579705707,6.1239,168.69,168.6,8.65686497]
[1729579705900,6.1239,168.69,168.62,8.65686497]
[1729579706100,8.0224166,168.74,168.66,8.65686497]
[1729579706101,29.6890166,168.74,168.66,8.65686497]
[1729579706291,35.6153166,168.74,168.66,8.65686497]
[1729579707498,20.0,168.73,168.66,8.65686497]
[1729579708316,20.0,168.73,168.65,13.5094077]
[1729579709399,35.6153166,168.74,168.65,13.5094077]
[1729579709706,29.6890166,168.74,168.67,13.5094077]
[1729579711908,35.6152166,168.74,168.67,13.5094077]
[1729579713618,29.6890166,168.74,168.67,13.5094077]
[1729579714508,8.0224166,168.74,168.67,13.5094077]
[1729579716999,8.0224166,168.74,168.69,13.5094077]